[Event "Titled Tuesday Blitz March 14 Late 2023"]
[White "Papasimakopoulos, Alexandros"]
[Black "Osmak, Yuliia"]
[WhiteFideId "4244125"]
[BlackFideId "14101602"]
[WhiteElo "2359"]
[BlackElo "2271"]
[Result "0-1"]
[Round "09"]
[TimeControl "180+2"]
[Date "2023.03.14"]
[WhiteClock "0:00:08"]
[BlackClock "0:00:12"]

1. Nf3 {[%clk 0:02:53]}  d5 {[%clk 0:02:58]} 2. d4 {[%clk 0:02:50]}  Nf6 {[%clk 0:02:58]} 3. c4 {[%clk 0:02:50]}  e6 {[%clk 0:02:58]} 4. Nc3 {[%clk 0:02:50]}  h6 {[%clk 0:02:53]} 5. Bf4 {[%clk 0:02:48]}  dxc4 {[%clk 0:02:45]} 6. e4 {[%clk 0:02:38]}  Bb4 {[%clk 0:02:32]} 7. Qc2 {[%clk 0:02:30]}  O-O {[%clk 0:02:23]} 8. Bxc4 {[%clk 0:02:28]}  Nc6 {[%clk 0:02:08]} 9. Rd1 {[%clk 0:02:24]}  Ne7 {[%clk 0:01:41]} 10. O-O {[%clk 0:02:20]}  a6 {[%clk 0:01:33]} 11. a3 {[%clk 0:02:17]}  Bxc3 {[%clk 0:01:30]} 12. bxc3 {[%clk 0:02:16]}  b5 {[%clk 0:01:31]} 13. Bd3 {[%clk 0:02:13]}  Bb7 {[%clk 0:01:31]} 14. a4 {[%clk 0:02:13]}  Ng6 {[%clk 0:01:25]} 15. Be3 {[%clk 0:02:03]}  Ng4 {[%clk 0:01:20]} 16. Bc1 {[%clk 0:02:01]}  Nh4 {[%clk 0:01:13]} 17. Nxh4 {[%clk 0:01:55]}  Qxh4 {[%clk 0:01:14]} 18. h3 {[%clk 0:01:55]}  Nf6 {[%clk 0:01:11]} 19. Rfe1 {[%clk 0:01:49]}  Rad8 {[%clk 0:00:51]} 20. f3 {[%clk 0:01:38]}  c6 {[%clk 0:00:46]} 21. Be3 {[%clk 0:01:27]}  Nh5 {[%clk 0:00:44]} 22. c4 {[%clk 0:01:25]}  Nf4 {[%clk 0:00:37]} 23. Bf1 {[%clk 0:01:19]}  Qg3 {[%clk 0:00:25]} 24. Bxf4 {[%clk 0:01:15]}  Qxf4 {[%clk 0:00:26]} 25. axb5 {[%clk 0:01:12]}  axb5 {[%clk 0:00:25]} 26. cxb5 {[%clk 0:01:12]}  cxb5 {[%clk 0:00:26]} 27. Bxb5 {[%clk 0:01:10]}  Qg3 {[%clk 0:00:25]} 28. Qf2 {[%clk 0:01:06]}  Qg5 {[%clk 0:00:23]} 29. Qd2 {[%clk 0:01:04]}  Qxb5 {[%clk 0:00:20]} 30. Rb1 {[%clk 0:01:01]}  Qd7 {[%clk 0:00:20]} 31. Red1 {[%clk 0:01:01]}  Bc6 {[%clk 0:00:19]} 32. Kh1 {[%clk 0:00:58]}  Rb8 {[%clk 0:00:20]} 33. Rbc1 {[%clk 0:00:58]}  Rfd8 {[%clk 0:00:19]} 34. Qc3 {[%clk 0:00:57]}  Ba4 {[%clk 0:00:19]} 35. Rd2 {[%clk 0:00:54]}  Rbc8 {[%clk 0:00:19]} 36. Qa3 {[%clk 0:00:55]}  Rxc1+ {[%clk 0:00:19]} 37. Qxc1 {[%clk 0:00:56]}  Qc6 {[%clk 0:00:19]} 38. Qa3 {[%clk 0:00:50]}  Rc8 {[%clk 0:00:20]} 39. Kh2 {[%clk 0:00:35]}  Qc7+ {[%clk 0:00:19]} 40. Kg1 {[%clk 0:00:33]}  Qc1+ {[%clk 0:00:19]} 41. Qxc1 {[%clk 0:00:33]}  Rxc1+ {[%clk 0:00:19]} 42. Kh2 {[%clk 0:00:34]}  Rd1 {[%clk 0:00:20]} 43. Ra2 {[%clk 0:00:31]}  Rxd4 {[%clk 0:00:19]} 44. Kg3 {[%clk 0:00:31]}  e5 {[%clk 0:00:20]} 45. h4 {[%clk 0:00:32]}  f6 {[%clk 0:00:20]} 46. Rb2 {[%clk 0:00:32]}  Kh7 {[%clk 0:00:20]} 47. Rb8 {[%clk 0:00:33]}  h5 {[%clk 0:00:20]} 48. Rb7 {[%clk 0:00:33]}  Kg6 {[%clk 0:00:20]} 49. Rb2 {[%clk 0:00:33]}  Bd7 {[%clk 0:00:20]} 50. Ra2 {[%clk 0:00:33]}  Be6 {[%clk 0:00:21]} 51. Rb2 {[%clk 0:00:33]}  Bc4 {[%clk 0:00:21]} 52. Rc2 {[%clk 0:00:33]}  Bd3 {[%clk 0:00:20]} 53. Rb2 {[%clk 0:00:30]}  Rc4 {[%clk 0:00:20]} 54. Rd2 {[%clk 0:00:29]}  Rc3 {[%clk 0:00:19]} 55. Kh2 {[%clk 0:00:29]}  Bc4 {[%clk 0:00:19]} 56. Kg3 {[%clk 0:00:28]}  Bb3 {[%clk 0:00:19]} 57. Rb2 {[%clk 0:00:28]}  Ba4 {[%clk 0:00:19]} 58. Ra2 {[%clk 0:00:27]}  Rc4 {[%clk 0:00:18]} 59. Kh2 {[%clk 0:00:27]}  Bc6 {[%clk 0:00:18]} 60. Kg3 {[%clk 0:00:27]}  Rc3 {[%clk 0:00:18]} 61. Kh2 {[%clk 0:00:26]}  Bd7 {[%clk 0:00:17]} 62. Rd2 {[%clk 0:00:26]}  Be6 {[%clk 0:00:17]} 63. Rd6 {[%clk 0:00:25]}  Bb3 {[%clk 0:00:16]} 64. Rb6 {[%clk 0:00:24]}  Ba4 {[%clk 0:00:15]} 65. Rb4 {[%clk 0:00:22]}  Bc6 {[%clk 0:00:15]} 66. Rb2 {[%clk 0:00:22]}  f5 {[%clk 0:00:15]} 67. exf5+ {[%clk 0:00:22]}  Kxf5 {[%clk 0:00:16]} 68. Rd2 {[%clk 0:00:19]}  g6 {[%clk 0:00:16]} 69. Rb2 {[%clk 0:00:19]}  Bd5 {[%clk 0:00:15]} 70. Rd2 {[%clk 0:00:19]}  Be6 {[%clk 0:00:15]} 71. Rb2 {[%clk 0:00:19]}  Rc4 {[%clk 0:00:15]} 72. Kg3 {[%clk 0:00:19]}  e4 {[%clk 0:00:14]} 73. fxe4+ {[%clk 0:00:19]}  Rxe4 {[%clk 0:00:13]} 74. Rf2+ {[%clk 0:00:19]}  Ke5 {[%clk 0:00:13]} 75. Rb2 {[%clk 0:00:15]}  Re3+ {[%clk 0:00:13]} 76. Kf2 {[%clk 0:00:12]}  Rb3 {[%clk 0:00:13]} 77. Rc2 {[%clk 0:00:10]}  Kf6 {[%clk 0:00:13]} 78. Rc5 {[%clk 0:00:09]}  Bf5 {[%clk 0:00:12]} 79. g3 {[%clk 0:00:10]}  Be4 {[%clk 0:00:12]} 80. Rc4 {[%clk 0:00:09]}  Kf5 {[%clk 0:00:11]} 81. Rc5+ {[%clk 0:00:09]}  Kf6 {[%clk 0:00:11]} 82. Rc4 {[%clk 0:00:08]}  Rf3+ {[%clk 0:00:11]} 83. Ke1 {[%clk 0:00:09]}  Bd5 {[%clk 0:00:10]} 84. Rd4 {[%clk 0:00:09]}  Be6 {[%clk 0:00:10]} 85. Ra4 {[%clk 0:00:05]}  Rxg3 {[%clk 0:00:09]} 86. Kf2 {[%clk 0:00:05]}  Rg4 {[%clk 0:00:10]} 87. Ra8 {[%clk 0:00:05]}  Rxh4 {[%clk 0:00:10]} 88. Ra6 {[%clk 0:00:05]}  Rf4+ {[%clk 0:00:09]} 89. Kg3 {[%clk 0:00:06]}  Rf5 {[%clk 0:00:10]} 90. Kh4 {[%clk 0:00:06]}  Rf4+ {[%clk 0:00:10]} 91. Kg3 {[%clk 0:00:06]}  Re4 {[%clk 0:00:11]} 92. Ra5 {[%clk 0:00:06]}  g5 {[%clk 0:00:11]} 93. Kf3 {[%clk 0:00:06]}  Rf4+ {[%clk 0:00:11]} 94. Ke3 {[%clk 0:00:06]}  Rf5 {[%clk 0:00:12]} 95. Ra4 {[%clk 0:00:06]}  h4 {[%clk 0:00:12]} 96. Ra8 {[%clk 0:00:05]}  Re5+ {[%clk 0:00:12]} 97. Kf3 {[%clk 0:00:05]}  Bd5+ {[%clk 0:00:12]} 98. Kg4 {[%clk 0:00:05]}  Bxa8 {[%clk 0:00:13]} 99. Kh5 {[%clk 0:00:06]}  h3 {[%clk 0:00:12]} 100. Kg4 {[%clk 0:00:07]}  h2 {[%clk 0:00:13]} 101. Kg3 {[%clk 0:00:08]}  h1=Q {[%clk 0:00:12]} 102. Kf2 {[%clk 0:00:08]}  Qg2# {[%clk 0:00:12]} 0-1


[Site "https://www.chess.com"]

[Event "Titled Tuesday Blitz March 14 Late 2023"]
[White "Filgueiras, Nathan Felipe"]
[Black "Sakun, Volodymyr"]
[WhiteFideId "2188562"]
[BlackFideId "14114062"]
[WhiteElo "2241"]
[BlackElo "2331"]
[Result "0-1"]
[Round "09"]
[TimeControl "180+2"]
[Date "2023.03.14"]
[WhiteClock "0:00:05"]
[BlackClock "0:00:08"]

1. e4 {[%clk 0:03:00]}  c5 {[%clk 0:02:58]} 2. Nf3 {[%clk 0:03:01]}  e6 {[%clk 0:02:58]} 3. d4 {[%clk 0:03:01]}  cxd4 {[%clk 0:02:59]} 4. Nxd4 {[%clk 0:03:02]}  a6 {[%clk 0:02:59]} 5. Bd3 {[%clk 0:03:02]}  Qc7 {[%clk 0:02:58]} 6. O-O {[%clk 0:03:02]}  Nc6 {[%clk 0:02:59]} 7. Nxc6 {[%clk 0:03:00]}  bxc6 {[%clk 0:02:58]} 8. c4 {[%clk 0:03:00]}  e5 {[%clk 0:02:51]} 9. Nc3 {[%clk 0:02:41]}  Nf6 {[%clk 0:02:50]} 10. Bg5 {[%clk 0:02:41]}  Be7 {[%clk 0:02:46]} 11. Qd2 {[%clk 0:02:41]}  h6 {[%clk 0:02:45]} 12. Bh4 {[%clk 0:02:41]}  d6 {[%clk 0:02:38]} 13. Rab1 {[%clk 0:02:24]}  O-O {[%clk 0:02:29]} 14. h3 {[%clk 0:02:20]}  Nh5 {[%clk 0:02:27]} 15. Bxe7 {[%clk 0:02:17]}  Qxe7 {[%clk 0:02:28]} 16. Ne2 {[%clk 0:02:14]}  a5 {[%clk 0:02:16]} 17. Qe3 {[%clk 0:02:14]}  Qg5 {[%clk 0:02:13]} 18. Qxg5 {[%clk 0:02:13]}  hxg5 {[%clk 0:02:14]} 19. Rfc1 {[%clk 0:02:00]}  Be6 {[%clk 0:02:02]} 20. b3 {[%clk 0:01:55]}  Nf4 {[%clk 0:01:44]} 21. Nxf4 {[%clk 0:01:54]}  gxf4 {[%clk 0:01:44]} 22. a3 {[%clk 0:01:48]}  c5 {[%clk 0:01:42]} 23. b4 {[%clk 0:01:47]}  axb4 {[%clk 0:01:42]} 24. axb4 {[%clk 0:01:48]}  Ra3 {[%clk 0:01:35]} 25. Bf1 {[%clk 0:01:47]}  cxb4 {[%clk 0:01:32]} 26. Rxb4 {[%clk 0:01:48]}  Ra6 {[%clk 0:01:11]} 27. c5 {[%clk 0:00:53]}  Rc6 {[%clk 0:01:11]} 28. Rb6 {[%clk 0:00:42]}  Rxc5 {[%clk 0:01:03]} 29. Rxc5 {[%clk 0:00:40]}  dxc5 {[%clk 0:01:03]} 30. Rc6 {[%clk 0:00:41]}  Rc8 {[%clk 0:01:03]} 31. Rxc8+ {[%clk 0:00:38]}  Bxc8 {[%clk 0:01:04]} 32. Bc4 {[%clk 0:00:37]}  f3 {[%clk 0:00:55]} 33. h4 {[%clk 0:00:30]}  fxg2 {[%clk 0:00:47]} 34. Kxg2 {[%clk 0:00:31]}  Kf8 {[%clk 0:00:47]} 35. Kf3 {[%clk 0:00:31]}  Ke7 {[%clk 0:00:46]} 36. Ke3 {[%clk 0:00:31]}  Be6 {[%clk 0:00:44]} 37. Be2 {[%clk 0:00:31]}  Kd6 {[%clk 0:00:42]} 38. Kd2 {[%clk 0:00:31]}  Kc6 {[%clk 0:00:31]} 39. Kc3 {[%clk 0:00:31]}  f6 {[%clk 0:00:30]} 40. Bd3 {[%clk 0:00:29]}  Kb6 {[%clk 0:00:31]} 41. Be2 {[%clk 0:00:28]}  Ka5 {[%clk 0:00:29]} 42. Bd3 {[%clk 0:00:24]}  Ka4 {[%clk 0:00:30]} 43. Bc4 {[%clk 0:00:17]}  Bd7 {[%clk 0:00:29]} 44. Bd5 {[%clk 0:00:13]}  Bb5 {[%clk 0:00:28]} 45. Bf7 {[%clk 0:00:13]}  Ka5 {[%clk 0:00:26]} 46. Bb3 {[%clk 0:00:12]}  Kb6 {[%clk 0:00:26]} 47. Bd1 {[%clk 0:00:13]}  Be8 {[%clk 0:00:21]} 48. Be2 {[%clk 0:00:12]}  Bg6 {[%clk 0:00:20]} 49. Bd3 {[%clk 0:00:13]}  Kc6 {[%clk 0:00:19]} 50. Bc2 {[%clk 0:00:12]}  Kd6 {[%clk 0:00:19]} 51. Bd3 {[%clk 0:00:13]}  Bh5 {[%clk 0:00:18]} 52. Bf1 {[%clk 0:00:13]}  Bf3 {[%clk 0:00:18]} 53. Bd3 {[%clk 0:00:13]}  Bg2 {[%clk 0:00:16]} 54. Bc2 {[%clk 0:00:13]}  Kc6 {[%clk 0:00:16]} 55. Bd3 {[%clk 0:00:13]}  Kb6 {[%clk 0:00:16]} 56. Bc2 {[%clk 0:00:14]}  Bf3 {[%clk 0:00:14]} 57. Bd3 {[%clk 0:00:14]}  g6 {[%clk 0:00:14]} 58. Bc2 {[%clk 0:00:14]}  Kc6 {[%clk 0:00:14]} 59. Bd3 {[%clk 0:00:14]}  Kd6 {[%clk 0:00:14]} 60. Bc2 {[%clk 0:00:15]}  Be2 {[%clk 0:00:14]} 61. Bb3 {[%clk 0:00:14]}  f5 {[%clk 0:00:11]} 62. exf5 {[%clk 0:00:13]}  gxf5 {[%clk 0:00:12]} 63. Bc2 {[%clk 0:00:14]}  e4 {[%clk 0:00:12]} 64. Kd2 {[%clk 0:00:13]}  Bh5 {[%clk 0:00:11]} 65. Kc3 {[%clk 0:00:10]}  Bf7 {[%clk 0:00:09]} 66. Bd1 {[%clk 0:00:11]}  Ke5 {[%clk 0:00:09]} 67. Be2 {[%clk 0:00:10]}  f4 {[%clk 0:00:10]} 68. Bd1 {[%clk 0:00:10]}  f3 {[%clk 0:00:10]} 69. Bc2 {[%clk 0:00:09]}  Kf4 {[%clk 0:00:10]} 70. Kd2 {[%clk 0:00:09]}  Bd5 {[%clk 0:00:09]} 71. Bd1 {[%clk 0:00:08]}  c4 {[%clk 0:00:09]} 72. Bc2 {[%clk 0:00:08]}  Kg4 {[%clk 0:00:09]} 73. Ke3 {[%clk 0:00:08]}  Kxh4 {[%clk 0:00:09]} 74. Bxe4 {[%clk 0:00:07]}  Bxe4 {[%clk 0:00:09]} 75. Kxe4 {[%clk 0:00:08]}  Kg4 {[%clk 0:00:08]} 76. Kd4 {[%clk 0:00:07]}  Kh3 {[%clk 0:00:08]} 77. Kxc4 {[%clk 0:00:05]}  Kg2 {[%clk 0:00:08]} 0-1


[Site "https://www.chess.com"]

[Event "Titled Tuesday Blitz March 14 Late 2023"]
[White "Szente Varga, Fruzsina"]
[Black "Priasmoro, Novendra"]
[WhiteFideId "712264"]
[BlackFideId "7105029"]
[WhiteElo "1994"]
[BlackElo "2412"]
[Result "0-1"]
[Round "09"]
[TimeControl "180+2"]
[Date "2023.03.14"]
[WhiteClock "0:00:11"]
[BlackClock "0:01:18"]

1. e4 {[%clk 0:03:00]}  c5 {[%clk 0:02:52]} 2. Nf3 {[%clk 0:02:59]}  Nc6 {[%clk 0:02:52]} 3. Bb5 {[%clk 0:02:59]}  g6 {[%clk 0:02:51]} 4. Nc3 {[%clk 0:02:56]}  Bg7 {[%clk 0:02:51]} 5. O-O {[%clk 0:02:55]}  e5 {[%clk 0:02:50]} 6. d3 {[%clk 0:02:53]}  Nge7 {[%clk 0:02:50]} 7. Bg5 {[%clk 0:02:51]}  h6 {[%clk 0:02:41]} 8. Bxc6 {[%clk 0:02:39]}  hxg5 {[%clk 0:02:40]} 9. Ba4 {[%clk 0:02:38]}  g4 {[%clk 0:02:40]} 10. Ng5 {[%clk 0:02:25]}  a6 {[%clk 0:02:27]} 11. Bb3 {[%clk 0:02:19]}  d5 {[%clk 0:02:01]} 12. exd5 {[%clk 0:01:36]}  Nf5 {[%clk 0:01:57]} 13. Nce4 {[%clk 0:01:03]}  Nd4 {[%clk 0:01:50]} 14. f4 {[%clk 0:00:54]}  f5 {[%clk 0:01:39]} 15. Nxc5 {[%clk 0:00:47]}  exf4 {[%clk 0:01:33]} 16. Re1+ {[%clk 0:00:37]}  Kf8 {[%clk 0:01:33]} 17. Nge6+ {[%clk 0:00:35]}  Nxe6 {[%clk 0:01:33]} 18. Nxe6+ {[%clk 0:00:25]}  Bxe6 {[%clk 0:01:33]} 19. Rxe6 {[%clk 0:00:26]}  Bd4+ {[%clk 0:01:27]} 20. Kf1 {[%clk 0:00:21]}  Rxh2 {[%clk 0:01:22]} 21. Re1 {[%clk 0:00:16]}  f3 {[%clk 0:01:19]} 22. gxf3 {[%clk 0:00:11]}  Rf2+ {[%clk 0:01:18]} 23. Kg1 {[%clk 0:00:11]}  Qh4 {[%clk 0:01:18]} 0-1


[Site "https://www.chess.com"]

[Event "Titled Tuesday Blitz March 14 Late 2023"]
[White "Yuan, Qingyu"]
[Black "Klose, Eli"]
[WhiteFideId "8609772"]
[BlackFideId "16242955"]
[WhiteElo "2359"]
[BlackElo "2620"]
[Result "1-0"]
[Round "09"]
[TimeControl "180+2"]
[Date "2023.03.14"]
[WhiteClock "0:00:09"]
[BlackClock "0:00:11"]

1. e4 {[%clk 0:03:00]}  e6 {[%clk 0:02:56]} 2. d4 {[%clk 0:03:01]}  d5 {[%clk 0:02:56]} 3. Nd2 {[%clk 0:03:01]}  Be7 {[%clk 0:02:53]} 4. Bd3 {[%clk 0:02:54]}  c5 {[%clk 0:02:52]} 5. dxc5 {[%clk 0:02:54]}  Nf6 {[%clk 0:02:50]} 6. Qe2 {[%clk 0:02:52]}  Nc6 {[%clk 0:02:49]} 7. Ngf3 {[%clk 0:02:45]}  Nb4 {[%clk 0:02:49]} 8. O-O {[%clk 0:02:39]}  Nxd3 {[%clk 0:02:48]} 9. cxd3 {[%clk 0:02:34]}  Bxc5 {[%clk 0:02:47]} 10. e5 {[%clk 0:02:29]}  Nd7 {[%clk 0:02:45]} 11. Nb3 {[%clk 0:02:19]}  Be7 {[%clk 0:02:42]} 12. Nfd4 {[%clk 0:02:15]}  O-O {[%clk 0:02:40]} 13. f4 {[%clk 0:02:14]}  g6 {[%clk 0:02:38]} 14. Be3 {[%clk 0:02:12]}  Nc5 {[%clk 0:02:33]} 15. Rfc1 {[%clk 0:02:03]}  Nxb3 {[%clk 0:02:32]} 16. axb3 {[%clk 0:01:58]}  Bd7 {[%clk 0:02:31]} 17. Qd2 {[%clk 0:01:25]}  a6 {[%clk 0:02:30]} 18. b4 {[%clk 0:01:07]}  Rc8 {[%clk 0:02:29]} 19. Nb3 {[%clk 0:01:03]}  Rxc1+ {[%clk 0:02:25]} 20. Rxc1 {[%clk 0:01:03]}  Bc6 {[%clk 0:01:22]} 21. Bd4 {[%clk 0:01:03]}  Qb8 {[%clk 0:01:12]} 22. Bc5 {[%clk 0:00:54]}  Qd8 {[%clk 0:01:06]} 23. Nd4 {[%clk 0:00:50]}  Bd7 {[%clk 0:00:51]} 24. Bxe7 {[%clk 0:00:45]}  Qxe7 {[%clk 0:00:52]} 25. Rc7 {[%clk 0:00:45]}  Rc8 {[%clk 0:00:51]} 26. Rxb7 {[%clk 0:00:44]}  Qe8 {[%clk 0:00:51]} 27. h3 {[%clk 0:00:35]}  Bb5 {[%clk 0:00:51]} 28. Kh2 {[%clk 0:00:34]}  h5 {[%clk 0:00:48]} 29. Nb3 {[%clk 0:00:25]}  Rc6 {[%clk 0:00:20]} 30. Qe3 {[%clk 0:00:19]}  Rc2 {[%clk 0:00:16]} 31. Qa7 {[%clk 0:00:16]}  Kg7 {[%clk 0:00:17]} 32. Rb8 {[%clk 0:00:14]}  Qd7 {[%clk 0:00:16]} 33. Rb7 {[%clk 0:00:13]}  Qe8 {[%clk 0:00:16]} 34. Nd4 {[%clk 0:00:12]}  Bxd3 {[%clk 0:00:13]} 35. Nxc2 {[%clk 0:00:12]}  Bxc2 {[%clk 0:00:13]} 36. Qc5 {[%clk 0:00:11]}  Be4 {[%clk 0:00:13]} 37. Qe7 {[%clk 0:00:10]}  Qxe7 {[%clk 0:00:08]} 38. Rxe7 {[%clk 0:00:11]}  Bd3 {[%clk 0:00:08]} 39. Kg1 {[%clk 0:00:09]}  Bb5 {[%clk 0:00:07]} 40. Kf2 {[%clk 0:00:07]}  d4 {[%clk 0:00:08]} 41. Rc7 {[%clk 0:00:07]}  h4 {[%clk 0:00:08]} 42. Kf3 {[%clk 0:00:05]}  d3 {[%clk 0:00:08]} 43. Ke3 {[%clk 0:00:05]}  g5 {[%clk 0:00:07]} 44. fxg5 {[%clk 0:00:05]}  Kg6 {[%clk 0:00:08]} 45. Re7 {[%clk 0:00:03]}  Bc4 {[%clk 0:00:07]} 46. Rd7 {[%clk 0:00:03]}  Bb5 {[%clk 0:00:08]} 47. Rc7 {[%clk 0:00:02]}  Kg7 {[%clk 0:00:05]} 48. b3 {[%clk 0:00:02]}  Kg6 {[%clk 0:00:05]} 49. Rb7 {[%clk 0:00:02]}  Kg7 {[%clk 0:00:05]} 50. Rb8 {[%clk 0:00:02]}  Kg6 {[%clk 0:00:06]} 51. Rb7 {[%clk 0:00:03]}  Kg7 {[%clk 0:00:05]} 52. Ra7 {[%clk 0:00:03]}  Kg6 {[%clk 0:00:06]} 53. Re7 {[%clk 0:00:03]}  Kg7 {[%clk 0:00:06]} 54. Kd2 {[%clk 0:00:03]}  Kg6 {[%clk 0:00:06]} 55. Rc7 {[%clk 0:00:03]}  Kg7 {[%clk 0:00:06]} 56. Rb7 {[%clk 0:00:03]}  Kg6 {[%clk 0:00:07]} 57. Ra7 {[%clk 0:00:03]}  Kg7 {[%clk 0:00:06]} 58. Ra8 {[%clk 0:00:04]}  Kg6 {[%clk 0:00:07]} 59. Rg8+ {[%clk 0:00:04]}  Kf5 {[%clk 0:00:07]} 60. Rh8 {[%clk 0:00:04]}  Kxg5 {[%clk 0:00:07]} 61. Rh7 {[%clk 0:00:05]}  Kg6 {[%clk 0:00:08]} 62. Rxh4 {[%clk 0:00:05]}  Kf5 {[%clk 0:00:09]} 63. Rh5+ {[%clk 0:00:05]}  Kf4 {[%clk 0:00:09]} 64. Rh7 {[%clk 0:00:05]}  Kxe5 {[%clk 0:00:08]} 65. Rxf7 {[%clk 0:00:05]}  Kd4 {[%clk 0:00:07]} 66. h4 {[%clk 0:00:05]}  e5 {[%clk 0:00:07]} 67. h5 {[%clk 0:00:05]}  e4 {[%clk 0:00:08]} 68. Re7 {[%clk 0:00:06]}  Bc6 {[%clk 0:00:05]} 69. h6 {[%clk 0:00:06]}  Bd5 {[%clk 0:00:06]} 70. h7 {[%clk 0:00:06]}  Be6 {[%clk 0:00:07]} 71. Rxe6 {[%clk 0:00:06]}  e3+ {[%clk 0:00:08]} 72. Rxe3 {[%clk 0:00:06]}  Kd5 {[%clk 0:00:09]} 73. h8=Q {[%clk 0:00:07]}  Kc6 {[%clk 0:00:10]} 74. Qe5 {[%clk 0:00:07]}  Kb6 {[%clk 0:00:10]} 75. Qc5+ {[%clk 0:00:08]}  Kb7 {[%clk 0:00:10]} 76. Re7+ {[%clk 0:00:09]}  Ka8 {[%clk 0:00:11]} 77. Qa7# {[%clk 0:00:09]} 1-0


[Site "https://www.chess.com"]

[Event "Titled Tuesday Blitz March 14 Late 2023"]
[White "Harvey, Marcus R"]
[Black "Mirimanian, Hayk"]
[WhiteFideId "400092"]
[BlackFideId "4700180"]
[WhiteElo "2457"]
[BlackElo "2280"]
[Result "1-0"]
[Round "09"]
[TimeControl "180+2"]
[Date "2023.03.14"]
[WhiteClock "0:02:17"]
[BlackClock "0:00:28"]

1. c4 {[%clk 0:02:59]}  e6 {[%clk 0:02:59]} 2. g3 {[%clk 0:02:58]}  Nf6 {[%clk 0:02:54]} 3. Bg2 {[%clk 0:02:58]}  d5 {[%clk 0:02:41]} 4. Nf3 {[%clk 0:02:58]}  dxc4 {[%clk 0:02:35]} 5. Qa4+ {[%clk 0:02:58]}  Nbd7 {[%clk 0:02:33]} 6. Qxc4 {[%clk 0:02:58]}  c5 {[%clk 0:02:28]} 7. d3 {[%clk 0:02:57]}  b6 {[%clk 0:02:18]} 8. Nd4 {[%clk 0:02:56]}  Ne5 {[%clk 0:02:15]} 9. Nc6 {[%clk 0:02:56]}  Nxc6 {[%clk 0:02:12]} 10. Bxc6+ {[%clk 0:02:57]}  Bd7 {[%clk 0:02:08]} 11. Bxa8 {[%clk 0:02:58]}  Qxa8 {[%clk 0:02:08]} 12. f3 {[%clk 0:02:59]}  h5 {[%clk 0:02:01]} 13. Bg5 {[%clk 0:02:57]}  Nd5 {[%clk 0:01:54]} 14. Nc3 {[%clk 0:02:56]}  f6 {[%clk 0:01:42]} 15. Bd2 {[%clk 0:02:56]}  h4 {[%clk 0:01:26]} 16. gxh4 {[%clk 0:02:56]}  Nb4 {[%clk 0:01:20]} 17. O-O-O {[%clk 0:02:54]}  Nc6 {[%clk 0:01:13]} 18. Kb1 {[%clk 0:02:47]}  Ne5 {[%clk 0:01:10]} 19. Qf4 {[%clk 0:02:47]}  Bd6 {[%clk 0:01:10]} 20. Ne4 {[%clk 0:02:43]}  Be7 {[%clk 0:01:10]} 21. Bc3 {[%clk 0:02:42]}  Nc6 {[%clk 0:00:53]} 22. Rdg1 {[%clk 0:02:41]}  Kf8 {[%clk 0:00:49]} 23. Rxg7 {[%clk 0:02:32]}  Kxg7 {[%clk 0:00:49]} 24. Bxf6+ {[%clk 0:02:31]}  Kh7 {[%clk 0:00:36]} 25. Ng5+ {[%clk 0:02:31]}  Kg6 {[%clk 0:00:35]} 26. Bxe7 {[%clk 0:02:28]}  Nxe7 {[%clk 0:00:34]} 27. Qf7+ {[%clk 0:02:28]}  Kh6 {[%clk 0:00:35]} 28. Qxe7 {[%clk 0:02:20]}  Qd5 {[%clk 0:00:29]} 29. Qf6+ {[%clk 0:02:16]}  Kh5 {[%clk 0:00:28]} 30. Qxh8+ {[%clk 0:02:17]} 1-0


[Site "https://www.chess.com"]

[Event "Titled Tuesday Blitz March 14 Late 2023"]
[White "Janaszak, Dawid"]
[Black "Bilych, Olexiy"]
[WhiteFideId "1119206"]
[BlackFideId "14156504"]
[WhiteElo "2220"]
[BlackElo "2320"]
[Result "0-1"]
[Round "09"]
[TimeControl "180+2"]
[Date "2023.03.14"]
[WhiteClock "0:00:06"]
[BlackClock "0:00:41"]

1. e4 {[%clk 0:03:00]}  c5 {[%clk 0:02:59]} 2. Nc3 {[%clk 0:03:00]}  Nc6 {[%clk 0:02:59]} 3. Bb5 {[%clk 0:03:00]}  Nd4 {[%clk 0:02:58]} 4. Nf3 {[%clk 0:03:00]}  a6 {[%clk 0:02:57]} 5. Bd3 {[%clk 0:02:59]}  Nc6 {[%clk 0:02:55]} 6. O-O {[%clk 0:02:55]}  e6 {[%clk 0:02:56]} 7. b3 {[%clk 0:02:46]}  g6 {[%clk 0:02:54]} 8. Bb2 {[%clk 0:02:46]}  Bg7 {[%clk 0:02:55]} 9. Re1 {[%clk 0:02:42]}  Nge7 {[%clk 0:02:55]} 10. e5 {[%clk 0:02:36]}  d5 {[%clk 0:02:53]} 11. exd6 {[%clk 0:02:36]}  Nf5 {[%clk 0:02:45]} 12. Bxf5 {[%clk 0:02:21]}  gxf5 {[%clk 0:02:45]} 13. Na4 {[%clk 0:02:12]}  Bxb2 {[%clk 0:02:44]} 14. Nxb2 {[%clk 0:02:13]}  Qxd6 {[%clk 0:02:42]} 15. Nc4 {[%clk 0:02:12]}  Qc7 {[%clk 0:02:38]} 16. d4 {[%clk 0:02:12]}  b5 {[%clk 0:02:32]} 17. Nce5 {[%clk 0:02:12]}  Nxe5 {[%clk 0:02:30]} 18. Nxe5 {[%clk 0:02:12]}  O-O {[%clk 0:02:05]} 19. Qf3 {[%clk 0:02:05]}  Ra7 {[%clk 0:01:37]} 20. Rad1 {[%clk 0:01:51]}  cxd4 {[%clk 0:01:30]} 21. Rxd4 {[%clk 0:01:52]}  Qxc2 {[%clk 0:01:18]} 22. Rh4 {[%clk 0:01:15]}  f6 {[%clk 0:01:15]} 23. Nc6 {[%clk 0:01:02]}  Rg7 {[%clk 0:01:14]} 24. Nd4 {[%clk 0:00:43]}  Qd2 {[%clk 0:01:11]} 25. Rd1 {[%clk 0:00:42]}  Qg5 {[%clk 0:01:10]} 26. Rh5 {[%clk 0:00:35]}  Qg4 {[%clk 0:01:09]} 27. Qxg4 {[%clk 0:00:31]}  Rxg4 {[%clk 0:01:10]} 28. f3 {[%clk 0:00:28]}  Rg7 {[%clk 0:01:10]} 29. Rc1 {[%clk 0:00:27]}  Bd7 {[%clk 0:00:58]} 30. Rc7 {[%clk 0:00:26]}  Rc8 {[%clk 0:00:57]} 31. Rxc8+ {[%clk 0:00:22]}  Bxc8 {[%clk 0:00:58]} 32. Kf2 {[%clk 0:00:23]}  Rc7 {[%clk 0:00:58]} 33. g4 {[%clk 0:00:19]}  f4 {[%clk 0:00:54]} 34. g5 {[%clk 0:00:15]}  e5 {[%clk 0:00:51]} 35. Ne2 {[%clk 0:00:15]}  f5 {[%clk 0:00:51]} 36. Rh6 {[%clk 0:00:14]}  Rc2 {[%clk 0:00:46]} 37. Ke1 {[%clk 0:00:14]}  Bb7 {[%clk 0:00:44]} 38. Kd1 {[%clk 0:00:10]}  Rxa2 {[%clk 0:00:43]} 39. Nc3 {[%clk 0:00:11]}  Bxf3+ {[%clk 0:00:43]} 40. Kc1 {[%clk 0:00:10]}  Rg2 {[%clk 0:00:41]} 41. h4 {[%clk 0:00:10]}  e4 {[%clk 0:00:40]} 42. Re6 {[%clk 0:00:09]}  e3 {[%clk 0:00:41]} 43. b4 {[%clk 0:00:06]}  Be4 {[%clk 0:00:39]} 44. Nxe4 {[%clk 0:00:05]}  fxe4 {[%clk 0:00:40]} 45. Rxe4 {[%clk 0:00:06]}  f3 {[%clk 0:00:41]} 0-1


[Site "https://www.chess.com"]